Cogmind - Beta 12 @@@ ROGUE MODE // 2023.03.10 @ 12:18:41 Player: ArabianSandBoa Result: Destroyed by exploding Nuclear Reactor Performance ------------- Evolutions (2) 1000 Regions Visited (9) 1800 Robots Destroyed (206) 1030 Value Destroyed (6648) 6648 Prototype IDs (37) 740 Alien Tech Used (0) 0 Bonus (1984) 1984 TOTAL SCORE: 13202 Bonus ------- High Alert Combat Kills 1444 Follower Combat Kills 40 Entered Garrisons 200 Aligned with FarCom 300 Cogmind --------- Core Integrity 0/550 Matter 91/300 Energy 290/290 System Corruption 0% Temperature Cool (0) Movement Treading (323) Ox2 Location -8/Materials Parts ------- > --- POWER (1) -------- Reinforced Deuterium Engine > --- PROPULSION (3) --- Improved Medium Treads Improved Medium Treads Armored Medium Treads > --- UTILITY (4) ------ Advanced Cooling System Humpback Advanced Targeting Computer > --- WEAPON (3) ------- Enhanced Autogun Mini Grenade Launcher Mini Grenade Launcher > --- INVENTORY (35) --- Nuclear Core Compact Wheel Compact Wheel Xenon Bombardment Thruster Xenon Bombardment Thruster Xenon Bombardment Thruster Xenon Bombardment Thruster Improved Cooling System Medium Storage Unit Huge Storage Unit High-capacity Matter Pod (42) Trap Scanner Modified TNC Advanced Targeting Computer Weapon Cycler Improved Transmission Jammer Hardened Light Armor Plating Medium Reflective Plating Hardlight Generator Hacking Suite System Shield Long-range Tractor Beam Precision Beam Rifle Precision Beam Rifle Advanced Beam Rifle Cooled Particle Cannon Cooled Particle Cannon Cooled Particle Cannon Heavy Phase Cannon Enhanced Autogun Enhanced Autogun Enhanced Autogun Enhanced Autogun Mass Driver Improved Plasma Cutter Peak State ------------ > --- POWER ------------ Reinforced Deuterium Engine > --- PROPULSION ------- Improved Medium Treads Improved Medium Treads Armored Medium Treads > --- UTILITY ---------- Advanced Cooling System Humpback Medium Reflective Plating > --- WEAPON ----------- Cooled Particle Cannon Cooled Particle Cannon Heavy Phase Cannon > --- INVENTORY -------- Nuclear Core Wheel Compact Wheel Armored Wheel Xenon Bombardment Thruster Xenon Bombardment Thruster Xenon Bombardment Thruster Xenon Bombardment Thruster Cooling System Improved Cooling System Huge Storage Unit High-capacity Matter Pod Trap Scanner Machine Analyzer Modified TNC Advanced Targeting Computer Weapon Cycler Improved Transmission Jammer Hardened Light Armor Plating Reflective Plating Hardlight Generator Long-range Tractor Beam Cooled Particle Cannon Heavy Plasma Cannon Advanced Plasma Cannon Enhanced Autogun Enhanced Autogun Enhanced Autogun Enhanced Autogun Enhanced Autogun Magnetic Acceleration Cannon Mass Driver Improved Plasma Cutter [Rating: 60] Favorites ----------- Power Cooled Ion Engine Engine Cooled Ion Engine Power Core Nuclear Core Propulsion Armored Wheel Treads Armored Treads Leg Aluminum Leg Wheel Armored Wheel Flight Unit VTOL Module Utility Humpback Device Cooling System Storage Humpback Processor Improved Targeting Computer Hackware Hacking Suite Protection Light Armor Plating Weapon Enhanced Autogun Energy Gun Precision Beam Rifle Energy Cannon Cooled Particle Cannon Ballistic Gun Enhanced Autogun Ballistic Cannon Flak Cannon Launcher Grenade Launcher Special Weapon Mining Laser Build | -11 -10 -10 -9 -9 -9 -8 -8 -8 -8 ------- Run | Jun Mat Min Mat Min Exi Min Mat Gar Mat Slots Evolved 4 | . . . 2 . . . 2 . . Power . | . . . . . . . . . . Propulsion 1 | . . . . . . . 1 . . Utility 2 | . . . 1 . . . 1 . . Weapon 1 | . . . 1 . . . . . . Parts Attached 237 | 5 4 . 49 15 3 3 95 37 26 Power 16 | 1 . . 7 . . . 6 2 . Engine 12 | 1 . . 7 . . . 3 1 . Core 4 | . . . . . . . 3 1 . Reactor . | . . . . . . . . . . Propulsion 94 | 2 1 . 13 4 . . 45 23 6 Treads 45 | 2 . . 4 2 . . 20 14 3 Leg . | . . . . . . . . . . Wheel 48 | . 1 . 8 2 . . 25 9 3 Hover . | . . . . . . . . . . Flight 1 | . . . 1 . . . . . . Utility 55 | 1 1 . 8 6 3 1 25 4 6 Device 23 | 1 . . 2 3 1 . 11 2 3 Storage 9 | . 1 . 2 . 2 . 3 . 1 Processor 6 | . . . 1 . . . 4 . 1 Hackware 3 | . . . . . . . 3 . . Protection 14 | . . . 3 3 . 1 4 2 1 Artifact . | . . . . . . . . . . Weapon 72 | 1 2 . 21 5 . 2 19 8 14 Energy Gun 8 | 1 . . 3 . . . . . 4 Energy Cannon 12 | . . . 1 . . . 2 5 4 Ballistic Gun 33 | . 2 . 15 1 . 2 10 1 2 Ballistic Cannon 12 | . . . . 2 . . 6 2 2 Launcher 6 | . . . 1 2 . . 1 . 2 Special Weapon 1 | . . . 1 . . . . . . Impact Weapon . | . . . . . . . . . . Slashing Weapon . | . . . . . . . . . . Piercing Weapon . | . . . . . . . . . . Special Melee Weapon . | . . . . . . . . . . Unidentified Prototypes 8 | . . . 6 . . . 1 . 1 Parts Lost 27 | . . . 7 4 . . 11 4 1 Power 3 | . . . 1 . . . 2 . . Propulsion 11 | . . . 3 . . . 4 3 1 Utility 8 | . . . 2 3 . . 2 1 . Weapon 5 | . . . 1 1 . . 3 . . Highest Loss Streak 5 | . . . 2 2 . . 5 4 1 To Critical Strikes . | . . . . . . . . . . Average Slot Usage (%) 90 | . 91 85 98 99 60 76 89 89 89 Engine 7 | . 10 . 10 11 11 11 5 4 9 Core 1 | . . . . . . . 3 4 . Treads 10 | . 24 14 4 1 . . 11 16 26 Wheel 14 | . . 14 17 20 22 22 15 10 . Device 6 | . 14 14 7 6 8 . 6 6 8 Storage 10 | . 14 14 11 11 11 11 9 9 9 Processor 2 | . . . 2 . . . 2 . 5 Hackware 2 | . . . . . . . 7 3 . Protection 6 | . . . 11 15 8 10 2 8 3 Energy Gun 1 | . 24 . . . . . . . 9 Energy Cannon 3 | . . . . . . . . 16 10 Ballistic Gun 19 | . . 28 32 24 . 21 19 9 5 Ballistic Cannon 2 | . . . . 5 . . 5 . 1 Naked Turns . | . . . . . . . . . . Heaviest Build 288 | 15 30 23 103 110 288 219 230 245 248 Greatest Support 87 | 40 40 16 40 24 24 24 60 87 87 Greatest Overweight (x) 22 | . 1 1 8 4 11 9 22 11 6 Average Overweight (x) 3 | . . 1 2 3 3 8 4 4 2 Largest Inventory Capacity 35 | 8 15 15 25 25 35 35 35 35 35 Average Capacity 29 | 8 9 15 21 25 27 35 32 35 35 Most Carried 35 | 6 10 14 25 25 31 34 35 35 35 Average Carried 27 | 4 7 9 20 24 26 31 31 34 34 Final Capacity 35 | 8 15 15 25 25 35 35 35 35 35 Final Carried 35 | 3 8 14 25 25 31 34 35 35 35 Class Distribution -------------------- 32% | Hauler-Skirmisher 21% | Tank 21% | Hauler-Mutant 10% | Mutant 5% | Skirmisher 4% | Gunner Dominant Class ---------------- Mutant | -10/Materials Mutant | -10/Mines Tank | -9/Materials Tank | -9/Mines Mutant | -9/Exiles Hauler-Mutant | -8/Mines Hauler-Skirmisher | -8/Materials Hauler-Mutant | -8/Garrison Hauler-Skirmisher | -8/Materials Resources | -11 -10 -10 -9 -9 -9 -8 -8 -8 -8 ----------- Run | Jun Mat Min Mat Min Exi Min Mat Gar Mat Matter Collected 7540 | 200 60 81 2481 227 . 93 3363 572 463 Remotely 659 | . . . . . . . 659 . . Salvage Created 8422 | 95 136 49 3178 381 . 58 2707 638 1180 Parts 491 | 5 15 4 196 29 . 8 134 33 67 Haulers Intercepted 16 | . . . 6 . . . 6 . 4 Recyclers Shooed 7 | 1 1 1 2 . . . 1 . 1 Parts Field Recycled . | . . . . . . . . . . Retrieved Matter . | . . . . . . . . . . Parts Self-Destructed . | . . . . . . . . . . Prevented . | . . . . . . . . . . Kills | -11 -10 -10 -9 -9 -9 -8 -8 -8 -8 ------- Run | Jun Mat Min Mat Min Exi Min Mat Gar Mat Combat Hostiles Destroyed 148 | . 3 3 50 10 . . 46 15 21 Guns 109 | . 3 3 48 7 . . 26 9 13 Cannons 26 | . . . . 2 . . 16 6 2 AOE 13 | . . . 2 1 . . 4 . 6 Classes Destroyed 20 | 2 2 . 7 2 . . 4 3 . Worker 14 | . . . 4 1 . 2 4 . 3 Builder 8 | . . . 5 . . . 2 . 1 Tunneler 3 | 1 . . . . . 1 1 . . Hauler 16 | . . . 6 . . . 6 . 4 Recycler 16 | 1 1 . 8 . . . 6 . . Mechanic 1 | . . . 1 . . . . . . Operator 4 | . . . 1 . . . 1 . 2 Watcher 13 | . 1 . 5 . . . 5 . 2 Swarmer 26 | . 3 3 6 . . . 6 4 4 Grunt 84 | . . . 35 5 . . 25 4 15 Brawler 1 | . . . . . . . 1 . . Duelist 1 | . . . . . . . 1 . . Sentry 26 | . . . 9 2 . . 10 3 2 Demolisher 1 | . . . . 1 . . . . . Specialist 1 | . . . . . . . . 1 . Hunter 3 | . . . . . . . 2 1 . Programmer 1 | . . . . . . . . 1 . Heavy 1 | . . . . . . . 1 . . Behemoth 1 | . . . . . . . . 1 . Assembled 2 | . . . . 2 . . . . . Best Kill Streak 12 | 2 4 3 9 3 . 1 12 3 8 Combat Bots Only 8 | . 2 3 5 3 . . 8 3 6 Max Kills in Single Turn 4 | 2 1 1 2 2 . 1 3 2 4 Gunslinging 1 | . . . 1 1 . . 1 . . Exploded 3 | . . . 1 1 . . 2 . 3 Melee . | . . . . . . . . . . Uniques/NPCs Destroyed . | . . . . . . . . . . Combat | -11 -10 -10 -9 -9 -9 -8 -8 -8 -8 -------- Run | Jun Mat Min Mat Min Exi Min Mat Gar Mat Damage Taken 8551 | . 115 34 1633 799 . . 3828 1617 525 Core 936 | . 26 14 253 69 . . 315 196 63 Absorbed by Shields 151 | . . . 115 36 . . . . . Regen/Repaired (Parts) 302 | . . . . . . . 302 . . Core Remaining (%) 67 | 100 . 84 . . . 19 . . . Volleys Fired 559 | 2 16 8 166 22 . 3 176 102 64 Largest 3 | 2 2 2 3 3 . 2 3 3 3 Hottest 150 | 80 80 40 100 88 . 46 148 150 147 Shots Fired 1351 | 4 32 16 454 54 . 7 437 187 160 Gun 1003 | 4 32 16 444 37 . 7 284 75 104 Cannon 322 | . . . . 15 . . 149 112 46 Launcher 23 | . . . 7 2 . . 4 . 10 Special 3 | . . . 3 . . . . . . Kinetic 1034 | . . 16 438 52 . 7 407 75 39 Thermal 254 | 2 . . 3 . . . 26 112 111 Explosive 23 | . . . 7 2 . . 4 . 10 Electromagnetic 40 | 2 32 . 6 . . . . . . Robot Hit Streak 27 | 3 4 6 27 14 . 4 20 8 27 Robot Miss Streak 13 | . 3 1 4 6 . . 13 4 1 Penetration Max 1 | . . . . . . . 1 . . Secondary Targets 18 | . . . 9 3 . . 3 1 2 Max Gunslinging Chain 2 | . . . 1 2 . . 1 1 1 Shots Hit Robots 830 | 3 12 10 293 41 . 3 296 80 92 Core Hits 391 | 3 6 5 126 25 . 3 143 25 55 Critical Kills 3 | . . . 1 . . . 1 1 . Critical Parts Destroyed 3 | . . . 1 . . . 2 . . Critical Strikes 12 | . 1 . 2 . . . 3 1 5 Burn 5 | . . . . . . . . . 5 Destroy 6 | . . . 2 . . . 3 1 . Corrupt 1 | . 1 . . . . . . . . Melee Attacks . | . . . . . . . . . . Impact . | . . . . . . . . . . Slashing . | . . . . . . . . . . Piercing . | . . . . . . . . . . Sneak Attacks . | . . . . . . . . . . Combat Hostiles . | . . . . . . . . . . Follow-up Attacks . | . . . . . . . . . . Damage Inflicted 17008 | 51 202 82 5075 659 . 43 6239 2193 2464 Guns 10518 | 51 158 82 4302 416 . 43 3593 596 1277 Cannons 4567 | . . . . 156 . . 2306 1597 508 Explosions 1923 | . 44 . 773 87 . . 340 . 679 Melee . | . . . . . . . . . . Ramming . | . . . . . . . . . . Kinetic 11352 | . . 82 4215 572 . 43 5418 596 426 Thermal 3504 | 23 44 . . . . . 481 1597 1359 Explosive 1879 | . . . 773 87 . . 340 . 679 Electromagnetic 273 | 28 158 . 87 . . . . . . Impact . | . . . . . . . . . . Slashing . | . . . . . . . . . . Piercing . | . . . . . . . . . . Highest Corruption 8 | . . . 8 8 8 8 . . . Average Corruption 6 | . . . 5 8 8 8 . . . Corruption Purged . | . . . . . . . . . . Corruption Blocked . | . . . . . . . . . . Effects 187 | . . . 108 28 12 39 . . . Message Errors 43 | . . . 21 10 4 8 . . . Matter Fused 50 | . . . 32 6 2 10 . . . Heat Flow Errors 15 | . . . 10 1 . 4 . . . Energy Discharges 19 | . . . 12 2 1 4 . . . Parts Fused 5 | . . . 1 . . 4 . . . Data Loss (minor) 23 | . . . 12 4 4 3 . . . Data Loss (major) 8 | . . . 4 . . 4 . . . Misfires 3 | . . . 1 1 . 1 . . . Alerts 11 | . . . 7 2 1 1 . . . Weapon Failures 10 | . . . 8 2 . . . . . Overload Shots . | . . . . . . . . . . Overflow Damage 147 | . . . 100 18 . . 4 16 9 Projectiles 29 | . . . . . . . 4 16 9 Explosions 118 | . . . 100 18 . . . . . Melee . | . . . . . . . . . . Knockbacks 27 | . . . . 3 . . 24 . . Impact . | . . . . . . . . . . Kinetic 26 | . . . . 3 . . 23 . . Secondary 1 | . . . . . . . 1 . . Self-Inflicted Damage 146 | . . . 116 8 . . 8 . 14 Shots 7 | . . . 4 1 . . 1 . 1 Rammed . | . . . . . . . . . . Targets Rammed . | . . . . . . . . . . Kicked . | . . . . . . . . . . Crushed . | . . . . . . . . . . Highest Temperature 353 | 6 178 . 292 295 . 219 349 229 353 Average Temperature 74 | 3 81 . 64 100 . 83 90 58 67 Received Heat Transfer 3123 | . . . 657 111 . . 1836 294 225 Effects 6 | . . . 3 . . . . . 3 Shutdowns 1 | . . . . . . . . . 1 Energy Bleed 1 | . . . 1 . . . . . . Interference 4 | . . . 2 . . . . . 2 Siege Activations . | . . . . . . . . . . Robots Corrupted . | . . . . . . . . . . Combat Hostiles . | . . . . . . . . . . Parts Fried . | . . . . . . . . . . Impact Corruptions . | . . . . . . . . . . Robots Melted . | . . . . . . . . . . Combat Hostiles . | . . . . . . . . . . Parts Melted 10 | . . . . . . . 1 2 7 Heat Transferred 5363 | 50 50 . . . . . 703 1674 2886 Parts Sabotaged . | . . . . . . . . . . Parts Stolen . | . . . . . . . . . . Parts Stripped . | . . . . . . . . . . Power Chain Reactions 1 | . 1 . . . . . . . . Missiles Intercepted . | . . . . . . . . . . Alert | -11 -10 -10 -9 -9 -9 -8 -8 -8 -8 ------- Run | Jun Mat Min Mat Min Exi Min Mat Gar Mat Peak Influence 1473 | 10 157 146 1393 647 . 10 729 1473 891 Initial 717 | . 6 61 56 537 . . . 473 717 Average 515 | 7 97 121 750 559 . 3 274 910 674 Maximum Alert Level 4 | . . . 4 2 . . 3 4 3 Low Security (%) 22 | 100 100 100 4 . . 100 27 . . Level 1 19 | . . . 3 . . . 57 . . Level 2 28 | . . . 38 100 . . 13 28 50 Level 3 24 | . . . 41 . . . 1 55 49 Level 4 5 | . . . 12 . . . . 16 . Level 5 . | . . . . . . . . . . High Security . | . . . . . . . . . . Max Security . | . . . . . . . . . . Sterilizations 1 | . . . 1 . . . . . . Squads Dispatched 27 | . . . 12 . . . 11 . 4 Investigation 13 | . . . 10 . . . 3 . . Extermination . | . . . . . . . . . . Reinforcement 8 | . . . 2 . . . 3 . 3 Assault 2 | . . . . . . . 1 . 1 Garrison 4 | . . . . . . . 4 . . Intercept . | . . . . . . . . . . Searches Triggered . | . . . . . . . . . . Construction Impeded 2 | . . . 1 . . . 1 . . Haulers Reinforced . | . . . . . . . . . . Active Scanning Responses . | . . . . . . . . . . Cargo Convoy Interrupts . | . . . . . . . . . . Stealth | -11 -10 -10 -9 -9 -9 -8 -8 -8 -8 --------- Run | Jun Mat Min Mat Min Exi Min Mat Gar Mat Distress Signals 6 | . . . 2 . . . 2 . 2 Communications Jammed 8 | . . . . . . . . . 8 Distress Signals 8 | . . . . . . . . . 8 Times Spotted 201 | . 7 4 70 12 . . 64 16 28 Peak Tracking Total 10 | . 3 3 7 3 . . 10 3 5 Tactical Retreats 16 | . 2 1 5 1 . . 4 1 2 Traps | -11 -10 -10 -9 -9 -9 -8 -8 -8 -8 ------- Run | Jun Mat Min Mat Min Exi Min Mat Gar Mat Traps Triggered 18 | . 1 . 5 . . . 2 10 . Indirectly . | . . . . . . . . . . Trap Hack Attempts . | . . . . . . . . . . Triggered . | . . . . . . . . . . Disarmed . | . . . . . . . . . . Reprogrammed . | . . . . . . . . . . Reused . | . . . . . . . . . . Traps Extracted . | . . . . . . . . . . Installed . | . . . . . . . . . . Triggered . | . . . . . . . . . . Exploded 3 | . . . . . . . 3 . . Machines | -11 -10 -10 -9 -9 -9 -8 -8 -8 -8 ---------- Run | Jun Mat Min Mat Min Exi Min Mat Gar Mat Machines Disabled 24 | . . . 11 . . . 3 9 1 Max in Single Turn 3 | . . . 3 . . . 1 2 1 Garrison Relay 4 | . . . . . . . . 4 . Phase Generator 1 | . . . . . . . . 1 . Machines Repaired . | . . . . . . . . . . Machines Sabotaged . | . . . . . . . . . . Overloaded Fab Kills . | . . . . . . . . . . Hacking | -11 -10 -10 -9 -9 -9 -8 -8 -8 -8 --------- Run | Jun Mat Min Mat Min Exi Min Mat Gar Mat Machines Accessed 33 | . 1 . 12 . 1 . 15 2 2 Terminals 23 | . . . 9 . . . 10 2 2 Fabricators . | . . . . . . . . . . Repair Stations 1 | . . . . . . . 1 . . Recycling Units 4 | . 1 . 2 . . . 1 . . Scanalyzers 3 | . . . 1 . . . 2 . . Garrison Access 1 | . . . . . . . 1 . . Total Hacks 111 | . 4 . 48 . 1 . 48 6 4 Successful 60 | . 2 . 29 . 1 . 24 1 3 Failed 50 | . 2 . 18 . . . 24 5 1 Catastrophic 3 | . . . 3 . . . . . . Database Lockouts 1 | . . . 1 . . . . . . Manual 70 | . 4 . 33 . 1 . 29 . 3 Terminals 73 | . . . 30 . . . 33 6 4 Fabricators . | . . . . . . . . . . Repair Stations 4 | . . . . . . . 4 . . Recycling Units 14 | . 4 . 8 . . . 2 . . Scanalyzers 17 | . . . 10 . . . 7 . . Garrison Access 2 | . . . . . . . 2 . . Terminal Hacks 18 | . . . 10 . 1 . 5 1 1 Robot Analysis 7 | . . . 5 . . . 2 . . Prototype ID Bank 4 | . . . 3 . . . 1 . . Branch Access Points 2 | . . . 1 . . . . . 1 Emergency Access Points 1 | . . . . . . . . 1 . Hauler Manifests 1 | . . . . . . . 1 . . Zone Layout 2 | . . . 1 . . . 1 . . EX-Prototype ID Bank 1 | . . . . . 1 . . . . Fabricator Hacks . | . . . . . . . . . . Repair Station Hacks 4 | . . . . . . . 4 . . Scan Component 2 | . . . . . . . 2 . . Repair 2 | . . . . . . . 2 . . Recycling Unit Hacks 1 | . . . . . . . 1 . . Report Inventory 1 | . . . . . . . 1 . . Scanalyzer 13 | . . . 6 . . . 7 . . Insert Component 6 | . . . 3 . . . 3 . . Analyze 7 | . . . 3 . . . 4 . . Garrison Access Hacks 1 | . . . . . . . 1 . . Unlock Access 1 | . . . . . . . 1 . . Unauthorized Hacks 23 | . 2 . 13 . . . 6 . 2 Terminals 13 | . . . 6 . . . 5 . 2 Assimilate 2 | . . . . . . . 2 . . Botnet 7 | . . . 2 . . . 3 . 2 Detonate 1 | . . . 1 . . . . . . Sabotage 2 | . . . 2 . . . . . . Search 1 | . . . 1 . . . . . . Fabricators . | . . . . . . . . . . Repair Stations . | . . . . . . . . . . Recycling Units 9 | . 2 . 6 . . . 1 . . Monitor 1 | . . . 1 . . . . . . Reject 3 | . 1 . 2 . . . . . . Mask 4 | . 1 . 2 . . . 1 . . Tunnel 1 | . . . 1 . . . . . . Scanalyzers 1 | . . . 1 . . . . . . Extract 1 | . . . 1 . . . . . . Garrison Access . | . . . . . . . . . . Data Cores Recovered . | . . . . . . . . . . Used . | . . . . . . . . . . Hacking Detections 28 | . 1 . 10 . . . 14 1 2 Full Trace Events 8 | . 1 . 4 . . . 2 1 . Feedback Events 1 | . . . 1 . . . . . . Corruption 1 | . . . 1 . . . . . . Feedback Blocked . | . . . . . . . . . . Robot Schematics Acquired . | . . . . . . . . . . Robots Built . | . . . . . . . . . . Authchips . | . . . . . . . . . . Time . | . . . . . . . . . . Total Robot Build Rating . | . . . . . . . . . . Part Schematics Acquired 7 | . . . 5 . . . 2 . . Parts Built . | . . . . . . . . . . Authchips . | . . . . . . . . . . Time . | . . . . . . . . . . Total Part Build Rating . | . . . . . . . . . . Parts Repaired 2 | . . . . . . . 2 . . Time 70 | . . . . . . . 70 . . Parts Recycled . | . . . . . . . . . . Recycled Matter . | . . . . . . . . . . Retrieved Matter . | . . . . . . . . . . Retrieved Components . | . . . . . . . . . . Parts Scanalyzed 6 | . . . 3 . . . 3 . . Part Schematics Acquired 5 | . . . 3 . . . 2 . . Parts Damaged 1 | . . . 1 . . . . . . Bothacking | -11 -10 -10 -9 -9 -9 -8 -8 -8 -8 ------------ Run | Jun Mat Min Mat Min Exi Min Mat Gar Mat Used RIF Installer . | . . . . . . . . . . Robots Hacked . | . . . . . . . . . . Non-combat . | . . . . . . . . . . Combat . | . . . . . . . . . . Robot Hacks Applied . | . . . . . . . . . . Relay Couplers Released 16 | . . . . . . . . 16 . Machine Destruction 16 | . . . . . . . . 16 . Fabnet Peak Effective % . | . . . . . . . . . . Robots Rewired . | . . . . . . . . . . Allies Hacked . | . . . . . . . . . . Hacks Repelled . | . . . . . . . . . . Allies | -11 -10 -10 -9 -9 -9 -8 -8 -8 -8 -------- Run | Jun Mat Min Mat Min Exi Min Mat Gar Mat Total Allies 6 | . . 1 . 3 . . 2 . . Largest Group 4 | . . 1 1 3 3 3 4 . . Highest-Rated Group 66 | . . 31 31 40 40 40 66 . . Highest-Rated Ally 31 | . . 31 31 16 16 16 26 . . Total Orders 4 | . . . . . . . 4 . . STAY 3 | . . . . . . . 3 . . FOLLOW 1 | . . . . . . . 1 . . Ally Attacks 10 | . . . 10 . . . . . . Total Damage 124 | . . . 124 . . . . . . Kills 2 | . . . 2 . . . . . . Allies Corrupted . | . . . . . . . . . . Allies Melted . | . . . . . . . . . . Intel | -11 -10 -10 -9 -9 -9 -8 -8 -8 -8 ------- Run | Jun Mat Min Mat Min Exi Min Mat Gar Mat Robot Analysis Total 7 | . . . 5 . . . 2 . . Derelict Logs Recovered 3 | . . 1 . 2 . . . . . Drone Launches . | . . . . . . . . . . Drone Recoveries . | . . . . . . . . . . Exploration | -11 -10 -10 -9 -9 -9 -8 -8 -8 -8 ------------- Run | Jun Mat Min Mat Min Exi Min Mat Gar Mat Turns Passed 15500 | 28 313 345 4066 738 481 1156 4769 1951 1653 Spaces Moved 5924 | 9 142 243 1921 381 314 478 1473 613 350 Core . | . . . . . . . . . . Treads 1530 | 9 141 . 289 . . . 462 286 343 Legs . | . . . . . . . . . . Wheels 4394 | . 1 243 1632 381 314 478 1011 327 7 Hover . | . . . . . . . . . . Flight . | . . . . . . . . . . Fastest Speed 95 | 160 115 115 95 135 135 210 153 165 160 Average Speed 189 | 160 173 115 146 149 148 224 210 247 320 Slowest Speed 565 | 160 240 115 320 150 255 225 565 406 323 Overloaded Moves . | . . . . . . . . . . Propulsion Burnouts . | . . . . . . . . . . Robots Hopped . | . . . . . . . . . . Cave-ins Triggered . | . . . . . . . . . . Exploration Rate (%) 61 | 3 26 63 98 63 69 95 81 77 38 Regions Visited 9 Branch Regions 4 Pre-discovered Areas 1 | . . . 1 . . . . . . Known Exits Taken 2 | . . . 1 . . . 1 . . Unknown Exits Taken 6 | 1 1 1 . 1 1 1 . . . Scrap Searched 3 | . . 1 . 1 . 1 . . . Spaces Dug 20 | . . . 7 . . . 3 . 10 Terrain Destroyed 318 | . 2 . 103 14 . . 35 79 85 Melee . | . . . . . . . . . . Projectile 53 | . . . 3 . . . 20 6 24 AOE 265 | . 2 . 100 14 . . 15 73 61 Terrain Rammed . | . . . . . . . . . . Walls Destroyed . | . . . . . . . . . . Machines Disabled . | . . . . . . . . . . Actions | -11 -10 -10 -9 -9 -9 -8 -8 -8 -8 --------- Run | Jun Mat Min Mat Min Exi Min Mat Gar Mat Total 9291 | 20 176 295 2851 505 334 555 2883 907 765 Wait 2150 | . 7 39 605 68 1 66 1007 58 299 Move 5916 | 8 141 242 1920 380 313 477 1473 612 350 Hop . | . . . . . . . . . . Pick Up 186 | 1 7 6 53 8 8 6 67 16 14 Fast Attach 31 | 1 . . 15 1 3 . 10 1 . Attach 59 | 3 2 . 12 4 . 3 27 4 4 Detach 15 | . . . 3 4 . . 7 1 . Swap 148 | 1 2 . 23 10 . . 58 32 22 Drop 159 | 4 1 . 54 8 9 . 58 13 12 Fire 559 | 2 16 8 166 22 . 3 176 102 64 Melee . | . . . . . . . . . . Ram . | . . . . . . . . . . Kick . | . . . . . . . . . . Crush . | . . . . . . . . . . Escape Stasis 68 | . . . . . . . . 68 . Rewire . | . . . . . . . . . . Trap . | . . . . . . . . . . Miscellaneous . | . . . . . . . . . . Route ------- -11/Junkyard -10/Materials -10/Mines (discovered 2 exits: *Mat x2) -9/Materials (discovered 4 exits: *Mat x3 / *Min) -9/Mines (discovered 4 exits: *Mat x2 / *Exi / [*Zio]) -9/Exiles -8/Mines (discovered 2 exits: *Mat x2) -8/Materials (discovered 5 exits: *Fac x3 / *Sto / Gar) -8/Garrison (discovered 3 exits: *Mat x3) -8/Materials (discovered 1 exit: Sto) History --------- Turn | Location | Event 11 | -11/Junkyard | Discovered new exit (range 3) 29 | -11/Junkyard | Entered Materials 239 | -10/Materials | Discovered new exit (range 16) 304 | -10/Materials | Build established: Mutant 342 | -10/Materials | Entered Mines 532 | -10/Mines | Learned Materials garrison access intel 572 | -10/Mines | Discovered new exit (range 13) 642 | -10/Mines | Received a Rocket Launcher from a helpful Derelict 672 | -10/Mines | Discovered new exit (range 8) 675 | -10/Mines | Received a Mining Laser from a helpful Derelict 687 | -10/Mines | Entered Materials 687 | -9/Materials | Accompanied by 1 ally 687 | -9/Materials | Evolved 2 slots: Utility x1, Weapon x1 1207 | -9/Materials | Discovered new exit (range 5) 1296 | -9/Materials | Discovered new exit (range 10) 1453 | -9/Materials | Identified exit to Mines 1485 | -9/Materials | Discovered new exit (range 16) 1629 | -9/Materials | Build established: Gunner 2065 | -9/Materials | Build established: Tank 2495 | -9/Materials | Discovered new exit (range 3) 2748 | -9/Materials | Core integrity fell below 50% 4299 | -9/Materials | Central database locked down 4647 | -9/Materials | Sterilization system engaged 4647 | -9/Materials | Non-combat units ordered to evacuate 4747 | -9/Materials | Combat units ordered to evacuate 4753 | -9/Materials | Entered Mines 4787 | -9/Mines | Found a hidden stash of uninstalled traps 4924 | -9/Mines | Discovered new exit (range 8) 4929 | -9/Mines | A Derelict revealed a hidden shortcut to a safe place 5155 | -9/Mines | Learned 4 Materials zone layouts 5197 | -9/Mines | Learned location of 1 exit from Materials 5253 | -9/Mines | Discovered new exit (range 7) 5293 | -9/Mines | Assembled infested the area 5341 | -9/Mines | Core integrity fell below 20% 5435 | -9/Mines | Assisted by bots powering up and referring to "LRC-V3" 5445 | -9/Mines | Met 8R-AWN 5485 | -9/Mines | Discovered new exit (range 5) 5491 | -9/Mines | Entered Exiles 5491 | -9/Exiles | Accompanied by 3 allies 5532 | -9/Exiles | Welcomed by 8R-AWN 5555 | -9/Exiles | Met EX-HEX 5592 | -9/Exiles | Met EX-BIN 5600 | -9/Exiles | Build established: Mutant 5611 | -9/Exiles | Aligned with FarCom system 5612 | -9/Exiles | Given EX-Vault access code 5643 | -9/Exiles | Opened EX-Vault 5654 | -9/Exiles | Found Modified TNC 5685 | -9/Exiles | Warned to stay clear of 0b10 Research branches 5797 | -9/Exiles | Met EX-DEC 5896 | -9/Exiles | Discovered new exit (range 15) 5972 | -9/Exiles | Left Exiles lab with Modified TNC 5972 | -9/Exiles | Entered Mines 5972 | -8/Mines | Accompanied by 3 allies 6114 | -8/Mines | Discovered new exit (range 11) 6140 | -8/Mines | Build established: Hauler-Mutant 7007 | -8/Mines | Discovered new exit (range 8) 7128 | -8/Mines | Entered Materials 7128 | -8/Materials | Accompanied by 3 allies 7128 | -8/Materials | Evolved 2 slots: Propulsion x1, Utility x1 7129 | -8/Materials | Identified exit to Factory 7131 | -8/Materials | Loaded intel: 1 garrison access location 7479 | -8/Materials | Destroyed 8 combat bots 7901 | -8/Materials | Repaired Hrd. Light Armor Plating 7940 | -8/Materials | Repaired Assault Cannon 8508 | -8/Materials | Discovered exit to Factory (range 4) 8645 | -8/Materials | Lost 5 parts (1p1n2u1w) 8978 | -8/Materials | Build established: Skirmisher 9464 | -8/Materials | Build established: Hauler-Skirmisher 10202 | -8/Materials | Garrison activated, responded to threat 11210 | -8/Materials | Discovered new exit (range 16) 11237 | -8/Materials | Core integrity fell below 50% 11528 | -8/Materials | First assault squad dispatched 11584 | -8/Materials | Garrison activated, responded to threat 11862 | -8/Materials | Identified exit to Garrison 11897 | -8/Materials | Entered Garrison 11926 | -8/Garrison | Triggered checkpoint 11968 | -8/Garrison | Garrison Relay disabled 12120 | -8/Garrison | Triggered checkpoint 12177 | -8/Garrison | Discovered new exit (range 15) 12192 | -8/Garrison | Triggered checkpoint 12227 | -8/Garrison | Garrison Relay disabled 12437 | -8/Garrison | Triggered checkpoint 12522 | -8/Garrison | Triggered checkpoint 12646 | -8/Garrison | Garrison Relay disabled 12711 | -8/Garrison | Spotted B-75 Beast 12764 | -8/Garrison | Core integrity fell below 20% 12766 | -8/Garrison | Destroyed B-75 Beast 12785 | -8/Garrison | Lost 4 parts (3n1u) 13010 | -8/Garrison | Discovered new exit (range 10) 13342 | -8/Garrison | Build established: Hauler-Mutant 13487 | -8/Garrison | Discovered new exit (range 9) 13531 | -8/Garrison | Phase Generator disabled 13631 | -8/Garrison | Garrison Relay disabled 13692 | -8/Garrison | Triggered checkpoint 13848 | -8/Garrison | Entered Materials 13973 | -8/Materials | Build established: Hauler-Skirmisher 14082 | -8/Materials | Identified exit to Storage 15448 | -8/Materials | First assault squad dispatched 15501 | -8/Materials | Destroyed by exploding Nuclear Reactor Last Messages --------------- 15481_ U-05 Engineer lays Concrete. 15483_ U-05 Engineer builds a Wall. 15486_ U-05 Engineer lays Concrete. 15488_ R-06 Scavenger collects Aluminum Leg. 15488_ U-05 Engineer lays Concrete. 15488_ U-05 Engineer builds a Wall. 15489_ U-05 Engineer lays Concrete. 15490_ U-05 Engineer builds a Wall. 15492_ R-06 Scavenger collects Lgt. Nuclear Core. 15493_ The unstable cave ceiling collapses. 15493_ G-47 Trooper destroyed. 15493_ A-02 Transporter destroyed. 15493_ U-05 Engineer lays Concrete. 15496_ G-47 Trooper destroyed. 15496_ U-05 Engineer lays Concrete. 15497_ The unstable cave ceiling collapses. 15497_ U-05 Engineer builds a Wall. 15501_ Nuclear Reactor explodes. 15501_ The unstable cave ceiling collapses. 15501_ U-05 Engineer destroyed. Map ----- +----------------------------------------------------+ | ?????????????????????????????????????????????????? | | ?????????????????????????????????????????????????? | | ?????????????????????????????????????????????????? | | ?????????????????????????????????????????????????? | | ?????????????????????????????????????????????????? | | ?????????????????????????????????????????????????? | | ?????????????????????????????????????????????????? | | ?????????????????????????????????????????????????? | | ?????????????????????????????????????????????????? | | ?????????????????????????????????????????????????? | | ????????????????????w????????????????????????????? | | ?????????????????????+###?+###???????????????????? | | ????????????????????? ? ???????????????????? | | ????????????????????? ? ???? ??????????????? | | ????????????????????? |? "??? ??????????????? | | ?????????????????Y??"" ? ! """ ""?????????????? | | ?????????????????????" # """ Y" #???????????? | | ????????????????????? "" #???????????? | | ???????????????????### # Y #??????????? | | ???????????????????# ! # # # #??????????? | | ???????????????????#! ??????????? | | ???????????????????#! [ ?????? | | ???????????????????#! [ [ ?????? | | ???????????????????#! [ #??????????? | | ???????????????????##! *=% #??????????? | | ????????????????????### #@%!# !!! [ ????????? | | ????????????????#######!|%=u####!!! ????????? | | ????????????????""" " =%*=##???????????????????? | | ????????????# """ ##???????????????????? | | ????????????# """ ##???????????????????? | | ????????????# r###########??????????? | | ????????????# = # # #?????????? | | ????????????# + #????>?????? | | ????????????# # # #??????????? | | ???###################### ##########???????????? | | ??? # #???# #????????????????????? | | ???? """ # ##### #????????????????????? | | ????""""" # #????????????????????? | | ????""""" + #????????????????????? | | ????""""" # #????????????????????? | | ???? """ !!# ##+###+##????????????????????? | | ??? ![# # #?????????????????????? | | ??# ## ## #?????????????????????? | | ??############ ## ! #?????????????????????? | | ???????????? # ## ! #?????????????????????? | | ???????????? ## #?????????????????????? | | ??????????? # ## [ #?????????????????????? | | ??????????#### #######+#?????????????????????? | | ?????????????# #?????# #?????????????????????? | | ?????????????# #?????# #?????????????????????? | +----------------------------------------------------+ Best States ------------- Heat Dissipation 62 Energy Generation 16 Energy Capacity 290 Matter Stores 300 Matter Capacity 300 Sight Range 16 Terrain Scan Density 10 Jamming Range 14 Armor Coverage 300 Resistance: TH 15 Evasion (%) 41 Targeting Accuracy 8 Recoil Reduction 3 Particle Charging 15 Offensive Hacking 10 Defensive Hacking 10 Item Schematics ----------------- Huge Storage Unit | -9/Materials | Scanalyzed Autogun | -9/Materials | Scanalyzed Lgt. Angular Momentum Engine | -9/Materials | Scanalyzed Welding Torch | -9/Materials | Extracted Hover Unit | -9/Materials | Extracted Humpback | -8/Materials | Scanalyzed Arm. Treads | -8/Materials | Scanalyzed Robot Schematics ------------------ None Fabricated ------------ Nothing Alien Tech Used ----------------- None Achievements -------------- None Challenges ------------ None Game ------ Seed CoreHeavyRigger Manual? 1 Play Time 02:11:26 Cumulative 440.8 hours Start 2023.03.09 @ 21:57:09 End 2023.03.10 @ 12:18:41 Sessions 2 Manual Loads 0 Difficulty Rogue Special Mode None Game No. 493 Rogue 493 Adventurer 0 Explorer 0 Win Type - Total 0 Types 0/0/0/0/0/0/0/0/0 Lore% 59 Gallery% 79 Achievement% 64 Wizard Run 0 Options --------- ASCII 0 Keyboard 0 Movement Mouse Keybinds 0 Fullscreen 2 Font 24/Smallcaps Map View 76x50 Tactical HUD 1 Map Filters NONE Filters NONE Steam 1 RUN: afb5f480-72bd-4dd7-9270-93b640582c0b